fUSD/lending_fUSD_20260510
["ID","MTS","AMOUNT","RATE_DAILY","PERIOD"]
[421985700,1778405516000,-174.07,0.000225,2]
[421985703,1778405516000,-470.05025454,0.00023,2]
[421985775,1778405517000,-165.96,0.00026575,2]
[421985778,1778405517000,-173.139255,0.000266,2]
[421985776,1778405517000,-176.82,0.00026575,2]
[421985780,1778405517000,-173.139255,0.000266,2]
[421985774,1778405517000,-176.22,0.00026575,2]
[421985773,1778405517000,-166.43,0.00026575,2]
[421985769,1778405517000,-300.0,0.00026564,2]
[421985779,1778405517000,-173.139255,0.000266,2]
[421985770,1778405517000,-300.0,0.00026564,2]
[421985777,1778405517000,-151.54,0.00026575,7]
[421985771,1778405517000,-300.0,0.00026564,2]
[421985793,1778405517000,-1500.0,0.000266,2]
[421985781,1778405517000,-173.139255,0.000266,2]
[421985783,1778405517000,-151.0,0.000266,2]
[421985785,1778405517000,-1500.0,0.000266,2]
[421985784,1778405517000,-174.316506,0.000266,2]
[421985786,1778405517000,-1500.0,0.000266,2]
[421985788,1778405517000,-1500.0,0.000266,2]
[421985787,1778405517000,-1500.0,0.000266,2]
[421985792,1778405517000,-1500.0,0.000266,2]
[421985790,1778405517000,-1500.0,0.000266,2]
[421985789,1778405517000,-1500.0,0.000266,2]
[421985772,1778405517000,-402.0,0.00026564,2]
[421985791,1778405517000,-1500.0,0.000266,2]
[421985782,1778405517000,-151.0,0.000266,2]
[421985768,1778405517000,-300.0,0.00026564,2]
[421985753,1778405517000,-187.78006525,0.0002625,2]
[421985766,1778405517000,-300.0,0.00026564,2]
[421985794,1778405517000,-1144.0,0.000266,2]
[421985744,1778405517000,-151.54,0.00026027,2]
[421985742,1778405517000,-150.0,0.0002596,2]
[421985743,1778405517000,-176.79,0.00026027,2]
[421985747,1778405517000,-165.93,0.00026028,2]
[421985748,1778405517000,-166.42,0.00026119,7]
[421985749,1778405517000,-165.93,0.00026119,7]
[421985745,1778405517000,-151.54,0.00026027,7]
[421985746,1778405517000,-166.42,0.00026028,2]
[421985752,1778405517000,-165.93,0.0002621,30]
[421985751,1778405517000,-166.42,0.0002621,30]
[421985762,1778405517000,-787.38,0.000265,7]
[421985755,1778405517000,-165.93,0.00026301,2]
[421985750,1778405517000,-176.79,0.00026209,7]
[421985756,1778405517000,-500.0,0.00026383,4]
[421985758,1778405517000,-165.93,0.00026392,7]
[421985757,1778405517000,-166.42,0.00026392,7]
[421985760,1778405517000,-166.42,0.00026484,30]
[421985761,1778405517000,-165.93,0.00026484,30]
[421985759,1778405517000,-176.79,0.00026392,30]
[421985763,1778405517000,-941.0,0.00026528,2]
[421985764,1778405517000,-300.0,0.00026564,2]
[421985765,1778405517000,-300.0,0.00026564,2]
[421985767,1778405517000,-300.0,0.00026564,2]
[421985754,1778405517000,-166.42,0.00026301,2]
[421985795,1778405517000,-151.0,0.000267,2]
[421985797,1778405517000,-1339.83299523,0.00026852,2]
[421985843,1778405517000,-432.85644307,0.00027476,2]
[421985828,1778405517000,-11620.93,0.000274,7]
[421985831,1778405517000,-432.85644307,0.00027436,2]
[421985824,1778405517000,-174.29,0.000274,7]
[421985827,1778405517000,-289.6,0.000274,7]
[421985832,1778405517000,-621.0,0.00027452,2]
[421985835,1778405517000,-250.0,0.0002747,2]
[421985836,1778405517000,-250.0,0.0002747,2]
[421985833,1778405517000,-250.0,0.0002747,2]
[421985834,1778405517000,-250.0,0.0002747,2]
[421985837,1778405517000,-250.0,0.0002747,2]
[421985840,1778405517000,-250.0,0.0002747,2]
[421985838,1778405517000,-250.0,0.0002747,2]
[421985839,1778405517000,-250.0,0.0002747,2]
[421985842,1778405517000,-224.0,0.0002747,2]
[421985841,1778405517000,-250.0,0.0002747,2]
[421985845,1778405517000,-432.85644307,0.00027515,2]
[421985844,1778405517000,-379.0,0.00027479,2]
[421985846,1778405517000,-432.85644307,0.00027554,2]
[421985848,1778405517000,-432.85644307,0.00027632,2]
[421985849,1778405517000,-200.0,0.00027666,2]
[421985847,1778405517000,-432.85644307,0.00027593,2]
[421985850,1778405517000,-200.0,0.00027666,2]
[421985852,1778405517000,-432.85644307,0.00027671,2]
[421985796,1778405517000,-194.72792766,0.00026798,2]
[421985851,1778405517000,-519.42773168,0.00027671,2]
[421985825,1778405517000,-667.44,0.000274,14]
[421985830,1778405517000,-151.0,0.000274,7]
[421985829,1778405517000,-292.340021,0.000274,7]
[421985821,1778405517000,-151.0,0.00027397,2]
[421985798,1778405517000,-200.0,0.00026852,2]
[421985799,1778405517000,-200.0,0.00026852,2]
[421985801,1778405517000,-200.0,0.00027121,2]
[421985802,1778405517000,-201.93286099,0.00027346,2]
[421985803,1778405517000,-500.0,0.00027376,5]
[421985806,1778405517000,-151.0,0.00027397,7]
[421985800,1778405517000,-200.0,0.00027121,2]
[421985804,1778405517000,-200.0,0.00027392,2]
[421985826,1778405517000,-500.0,0.000274,120]
[421985807,1778405517000,-519.42773169,0.00027397,2]
[421985809,1778405517000,-151.0,0.00027397,2]
[421985810,1778405517000,-151.0,0.00027397,2]
[421985808,1778405517000,-432.85644307,0.00027397,2]
[421985805,1778405517000,-200.0,0.00027392,2]
[421985814,1778405517000,-151.55,0.00027397,30]
[421985816,1778405517000,-200.0,0.00027397,2]
[421985812,1778405517000,-200.0,0.00027397,2]
[421985818,1778405517000,-151.0,0.00027397,2]
[421985815,1778405517000,-1500.0,0.00027397,2]
[421985813,1778405517000,-250.24,0.00027397,2]
[421985817,1778405517000,-151.0,0.00027397,2]
[421985823,1778405517000,-1127.94,0.00027397,10]
[421985819,1778405517000,-1624.23,0.00027397,10]
[421985820,1778405517000,-1353.53,0.00027397,10]
[421985811,1778405517000,-151.0,0.00027397,2]
[421985822,1778405517000,-299.632183,0.00027397,2]
[421985884,1778405518000,-400.0,0.00029716,2]
[421985886,1778405518000,-400.0,0.00029716,2]
[421985894,1778405518000,-168.0,0.00029879,2]
[421985893,1778405518000,-150.0,0.00029879,2]
[421985892,1778405518000,-150.0,0.00029879,2]
[421985891,1778405518000,-150.0,0.00029879,2]
[421985887,1778405518000,-400.0,0.00029716,2]
[421985889,1778405518000,-461.0,0.00029716,2]
[421985890,1778405518000,-500.0,0.00029799,7]
[421985885,1778405518000,-400.0,0.00029716,2]
[421985895,1778405518000,-300.0,0.00029999,10]
[421985888,1778405518000,-400.0,0.00029716,2]
[421985896,1778405518000,-1000.0,0.0003,120]
[421985911,1778405518000,-173.139255,0.0003013,7]
[421985899,1778405518000,-299.57955851,0.00030081,3]
[421985897,1778405518000,-87877.0,0.0003,2]
[421985900,1778405518000,-300.0,0.00030129,10]
[421985902,1778405518000,-204.61879094,0.0003013,2]
[421985903,1778405518000,-202.66433152,0.0003013,2]
[421985904,1778405518000,-81060.16686431,0.0003013,7]
[421985901,1778405518000,-14050.68416575,0.0003013,2]
[421985909,1778405518000,-173.139255,0.0003013,7]
[421985907,1778405518000,-151.0,0.0003013,7]
[421985905,1778405518000,-151.0,0.0003013,7]
[421985906,1778405518000,-151.0,0.0003013,7]
[421985908,1778405518000,-173.139255,0.0003013,7]
[421985883,1778405518000,-400.0,0.00029716,2]
[421985898,1778405518000,-1557.7052676,0.0003,2]
[421985882,1778405518000,-400.0,0.00029716,2]
[421985855,1778405518000,-209.40437684,0.00027894,2]
[421985877,1778405518000,-150.0,0.00029674,2]
[421985853,1778405518000,-200.0,0.00027671,2]
[421985854,1778405518000,-500.0,0.000278,7]
[421985856,1778405518000,-200.0,0.00027942,2]
[421985857,1778405518000,-200.0,0.00027942,2]
[421985859,1778405518000,-1000.0,0.00028,120]
[421985860,1778405518000,-564.983563,0.00028,60]
[421985861,1778405518000,-200.0,0.00028227,2]
[421985858,1778405518000,-200.0,0.00027948,2]
[421985863,1778405518000,-500.0,0.00028369,6]
[421985867,1778405518000,-1203.0,0.00028892,10]
[421985866,1778405518000,-1332.44947127,0.00028646,15]
[421985868,1778405518000,-251.09299455,0.0002899,2]
[421985881,1778405518000,-400.0,0.00029716,2]
[421985865,1778405518000,-217.15233878,0.00028442,2]
[421985862,1778405518000,-387.49750058,0.0002835,2]
[421985869,1778405518000,-379.0,0.00029096,2]
[421985870,1778405518000,-346.0,0.00029222,10]
[421985872,1778405518000,-779.0717705,0.00029305,2]
[421985871,1778405518000,-61462.5823303,0.00029305,2]
[421985873,1778405518000,-26840.9610094,0.00029305,2]
[421985876,1778405518000,-500.0,0.00029362,7]
[421985878,1778405518000,-150.0,0.00029674,2]
[421985874,1778405518000,-4709.0691996,0.00029305,2]
[421985875,1778405518000,-16963.5485205,0.00029305,2]
[421985880,1778405518000,-250.0,0.00029674,2]
[421985879,1778405518000,-150.0,0.00029674,2]
[421985864,1778405518000,-959.41321745,0.000284,2]
[421985910,1778405518000,-173.139255,0.0003013,7]
[421985968,1778405518000,-181.0,0.00033167,2]
[421985916,1778405518000,-11620.93,0.000302,7]
[421985946,1778405518000,-151.0,0.0003221,5]
[421985945,1778405518000,-348.4,0.00032055,2]
[421985947,1778405518000,-500.0,0.00032341,10]
[421985948,1778405518000,-154.0,0.00032526,30]
[421985951,1778405518000,-227.0,0.00032526,30]
[421985950,1778405518000,-155.0,0.00032526,30]
[421985949,1778405518000,-302.0,0.00032526,30]
[421985953,1778405518000,-173.8344089,0.0003259,2]
[421985954,1778405518000,-5989.0279285,0.0003259,2]
[421985952,1778405518000,-13714.1558385,0.0003259,2]
[421985955,1778405518000,-1050.7353646,0.0003259,2]
[421985958,1778405518000,-151.0,0.00032877,7]
[421985943,1778405518000,-255.0,0.00031993,2]
[421985957,1778405518000,-2419.0,0.00032877,2]
[421985961,1778405518000,-150.0,0.00033,14]
[421985963,1778405518000,-239.0,0.0003305,2]
[421985959,1778405518000,-667.44,0.000329,14]
[421985960,1778405518000,-959.41321745,0.000329,2]
[421985962,1778405518000,-500.0,0.00033,120]
[421985966,1778405518000,-150.0,0.00033167,2]
[421985969,1778405518000,-500.0,0.00033333,11]
[421985967,1778405518000,-150.0,0.00033167,2]
[421985965,1778405518000,-150.0,0.00033167,2]
[421985971,1778405518000,-302.0,0.00033526,30]
[421985970,1778405518000,-154.0,0.00033526,30]
[421985912,1778405518000,-151.0,0.0003013,7]
[421985964,1778405518000,-205.0,0.0003305,2]
[421985942,1778405518000,-300.0,0.00031993,2]
[421985956,1778405518000,-3785.079298,0.0003259,2]
[421985941,1778405518000,-300.0,0.00031993,2]
[421985915,1778405518000,-200.0,0.00030137,2]
[421985944,1778405518000,-1000.0,0.00032,120]
[421985913,1778405518000,-9318.837,0.00030137,30]
[421985914,1778405518000,-180.82,0.00030137,2]
[421985918,1778405518000,-500.0,0.00030355,8]
[421985920,1778405518000,-156.11776604,0.00030526,30]
[421985917,1778405518000,-151.0,0.000302,7]
[421985919,1778405518000,-787.38,0.000305,7]
[421985922,1778405518000,-302.0,0.00030526,30]
[421985924,1778405518000,-155.0,0.00030526,30]
[421985923,1778405518000,-161.08485397,0.00030526,30]
[421985927,1778405518000,-200.0,0.00031096,2]
[421985926,1778405518000,-289.6,0.000306,7]
[421985928,1778405518000,-250.82110069,0.000312,2]
[421985921,1778405518000,-154.0,0.00030526,30]
[421985933,1778405518000,-155.0,0.00031526,30]
[421985940,1778405518000,-300.0,0.00031993,2]
[421985925,1778405518000,-227.0,0.00030526,30]
[421985935,1778405518000,-300.0,0.00031993,2]
[421985936,1778405518000,-300.0,0.00031993,2]
[421985939,1778405518000,-300.0,0.00031993,2]
[421985938,1778405518000,-300.0,0.00031993,2]
[421985934,1778405518000,-227.0,0.00031526,30]
[421985932,1778405518000,-302.0,0.00031526,30]
[421985931,1778405518000,-154.0,0.00031526,30]
[421985930,1778405518000,-500.0,0.000314,120]
[421985929,1778405518000,-500.0,0.00031348,9]
[421985937,1778405518000,-300.0,0.00031993,2]
[421986012,1778405519000,-500.0,0.00036312,14]
[421986014,1778405519000,-302.0,0.00036526,30]
[421986013,1778405519000,-154.0,0.00036526,30]
[421986011,1778405519000,-151.0,0.00036153,30]
[421986007,1778405519000,-170.37389063,0.00035616,2]
[421986004,1778405519000,-159.43477557,0.00035526,30]
[421986009,1778405519000,-500.0,0.00036,120]
[421986008,1778405519000,-180.82,0.00035616,2]
[421986003,1778405519000,-302.0,0.00035526,30]
[421986005,1778405519000,-227.0,0.00035526,30]
[421986016,1778405519000,-500.0,0.00036999,7]
[421986010,1778405519000,-186.0,0.00036,30]
[421986017,1778405519000,-200.0,0.00037,120]
[421986027,1778405519000,-1537.0,0.00037368,7]
[421986015,1778405519000,-227.0,0.00036526,30]
[421986018,1778405519000,-500.0,0.00037305,15]
[421986021,1778405519000,-1204.70992364,0.00037368,7]
[421986026,1778405519000,-1537.0,0.00037368,7]
[421986023,1778405519000,-151.0,0.00037368,7]
[421986020,1778405519000,-1537.0,0.00037368,7]
[421986022,1778405519000,-151.0,0.00037368,7]
[421986025,1778405519000,-1537.0,0.00037368,7]
[421986024,1778405519000,-1537.0,0.00037368,7]
[421986028,1778405519000,-1537.0,0.00037368,7]
[421986030,1778405519000,-151.0,0.00037368,7]
[421986029,1778405519000,-1537.0,0.00037368,7]
[421986006,1778405519000,-1500.0,0.00035616,120]
[421986019,1778405519000,-1537.0,0.00037368,7]
[421986001,1778405519000,-500.0,0.00035319,13]
[421985974,1778405519000,-584.07464158,0.000336,120]
[421986000,1778405519000,-65237.9471145,0.00035,6]
[421985973,1778405519000,-227.0,0.00033526,30]
[421985975,1778405519000,-289.6,0.000338,30]
[421985977,1778405519000,-150.0,0.0003397,2]
[421985976,1778405519000,-150.0,0.0003397,2]
[421986032,1778405519000,-1537.0,0.00037368,7]
[421985979,1778405519000,-192.0,0.0003397,2]
[421985980,1778405519000,-1000.0,0.00034,120]
[421985978,1778405519000,-150.0,0.0003397,2]
[421985981,1778405519000,-400.0,0.00034025,2]
[421985987,1778405519000,-400.0,0.00034025,2]
[421985984,1778405519000,-400.0,0.00034025,2]
[421985983,1778405519000,-400.0,0.00034025,2]
[421985982,1778405519000,-400.0,0.00034025,2]
[421985989,1778405519000,-400.0,0.00034025,2]
[421985985,1778405519000,-400.0,0.00034025,2]
[421985986,1778405519000,-400.0,0.00034025,2]
[421985988,1778405519000,-400.0,0.00034025,2]
[421985990,1778405519000,-212.0,0.00034025,2]
[421985992,1778405519000,-500.0,0.00034326,12]
[421985991,1778405519000,-151.0,0.00034182,7]
[421985993,1778405519000,-154.0,0.00034526,30]
[421985994,1778405519000,-302.0,0.00034526,30]
[421985996,1778405519000,-227.0,0.00034526,30]
[421985998,1778405519000,-1138.01237382,0.00034795,2]
[421986002,1778405519000,-154.0,0.00035526,30]
[421985997,1778405519000,-11620.93,0.000346,7]
[421985995,1778405519000,-155.0,0.00034526,30]
[421985999,1778405519000,-200.0,0.00035,120]
[421986031,1778405519000,-1537.0,0.00037368,7]
[421985972,1778405519000,-155.0,0.00033526,30]
[421986038,1778405519000,-1537.0,0.00037368,7]
[421986066,1778405519000,-1537.0,0.00037368,7]
[421986068,1778405519000,-1537.0,0.00037368,7]
[421986069,1778405519000,-964.66355495,0.00037368,7]
[421986070,1778405519000,-301.40443782,0.00037368,7]
[421986072,1778405519000,-152.0,0.00037368,7]
[421986071,1778405519000,-152.0,0.00037368,7]
[421986073,1778405519000,-152.0,0.00037368,7]
[421986077,1778405519000,-152.0,0.00037368,7]
[421986074,1778405519000,-152.0,0.00037368,7]
[421986075,1778405519000,-152.0,0.00037368,7]
[421986076,1778405519000,-152.0,0.00037368,7]
[421986079,1778405519000,-152.0,0.00037368,7]
[421986078,1778405519000,-152.0,0.00037368,7]
[421986067,1778405519000,-1537.0,0.00037368,7]
[421986080,1778405519000,-152.0,0.00037368,7]
[421986082,1778405519000,-152.0,0.00037368,7]
[421986084,1778405519000,-152.0,0.00037368,7]
[421986088,1778405519000,-152.0,0.00037368,7]
[421986087,1778405519000,-152.0,0.00037368,7]
[421986083,1778405519000,-152.0,0.00037368,7]
[421986085,1778405519000,-152.0,0.00037368,7]
[421986086,1778405519000,-152.0,0.00037368,7]
[421986089,1778405519000,-257.13086667,0.00037368,7]
[421986091,1778405519000,-154.0,0.00037368,7]
[421986090,1778405519000,-154.0,0.00037368,7]
[421986092,1778405519000,-155.93137852,0.00037368,7]
[421986093,1778405519000,-186.0,0.00037397,30]
[421986094,1778405519000,-959.41321745,0.000374,2]
[421986081,1778405519000,-152.0,0.00037368,7]
[421986060,1778405519000,-1537.0,0.00037368,7]
[421986034,1778405519000,-1537.0,0.00037368,7]
[421986061,1778405519000,-1537.0,0.00037368,7]
[421986065,1778405519000,-1537.0,0.00037368,7]
[421986033,1778405519000,-1537.0,0.00037368,7]
[421986037,1778405519000,-151.0,0.00037368,7]
[421986036,1778405519000,-1537.0,0.00037368,7]
[421986040,1778405519000,-1537.0,0.00037368,7]
[421986039,1778405519000,-151.0,0.00037368,7]
[421986044,1778405519000,-1537.0,0.00037368,7]
[421986043,1778405519000,-151.0,0.00037368,7]
[421986042,1778405519000,-1537.0,0.00037368,7]
[421986041,1778405519000,-151.0,0.00037368,7]
[421986045,1778405519000,-151.0,0.00037368,7]
[421986047,1778405519000,-151.0,0.00037368,7]
[421986046,1778405519000,-1537.0,0.00037368,7]
[421986052,1778405519000,-1537.0,0.00037368,7]
[421986035,1778405519000,-151.0,0.00037368,7]
[421986050,1778405519000,-1537.0,0.00037368,7]
[421986051,1778405519000,-151.0,0.00037368,7]
[421986063,1778405519000,-1537.0,0.00037368,7]
[421986059,1778405519000,-1537.0,0.00037368,7]
[421986058,1778405519000,-1537.0,0.00037368,7]
[421986057,1778405519000,-1537.0,0.00037368,7]
[421986064,1778405519000,-1537.0,0.00037368,7]
[421986056,1778405519000,-1537.0,0.00037368,7]
[421986048,1778405519000,-1537.0,0.00037368,7]
[421986054,1778405519000,-1537.0,0.00037368,7]
[421986062,1778405519000,-1537.0,0.00037368,7]
[421986053,1778405519000,-151.0,0.00037368,7]
[421986055,1778405519000,-293.78355071,0.00037368,7]
[421986049,1778405519000,-151.0,0.00037368,7]
[421986123,1778405520000,-500.0,0.00040284,18]
[421986135,1778405520000,-173.139259,0.000405,30]
[421986124,1778405520000,-530.74,0.0004029,60]
[421986125,1778405520000,-590.05,0.0004029,60]
[421986128,1778405520000,-25000.0,0.000405,120]
[421986129,1778405520000,-275.733568,0.000405,30]
[421986131,1778405520000,-198.706052,0.000405,30]
[421986132,1778405520000,-173.139255,0.000405,30]
[421986133,1778405520000,-173.139255,0.000405,30]
[421986134,1778405520000,-173.139255,0.000405,30]
[421986130,1778405520000,-151.0,0.000405,30]
[421986141,1778405520000,-150.0,0.00040822,60]
[421986137,1778405520000,-411.6,0.000408,120]
[421986138,1778405520000,-1834.0,0.00040822,60]
[421986139,1778405520000,-150.0,0.00040822,60]
[421986140,1778405520000,-1834.0,0.00040822,60]
[421986142,1778405520000,-1834.0,0.00040822,60]
[421986143,1778405520000,-150.0,0.00040822,60]
[421986144,1778405520000,-1834.0,0.00040822,60]
[421986145,1778405520000,-150.0,0.00040822,60]
[421986146,1778405520000,-500.0,0.00040822,60]
[421986147,1778405520000,-150.0,0.00040822,60]
[421986149,1778405520000,-500.0,0.00040822,60]
[421986126,1778405520000,-1351.65,0.0004029,60]
[421986136,1778405520000,-151.0,0.000405,30]
[421986121,1778405520000,-2000.0,0.0004,120]
[421986113,1778405520000,-500.0,0.00039291,17]
[421986120,1778405520000,-500.0,0.0004,120]
[421986095,1778405520000,-383.80766231,0.00037753,120]
[421986096,1778405520000,-289.6,0.000378,30]
[421986098,1778405520000,-151.0,0.00038125,30]
[421986099,1778405520000,-201.26539751,0.00038219,30]
[421986097,1778405520000,-500.0,0.00038,120]
[421986101,1778405520000,-220.0,0.00038356,2]
[421986100,1778405520000,-500.0,0.00038298,16]
[421986102,1778405520000,-741.66,0.00038356,120]
[421986104,1778405520000,-3642.594,0.00038525,52]
[421986105,1778405520000,-268.116,0.00038525,52]
[421986106,1778405520000,-11620.93,0.000389,7]
[421986103,1778405520000,-261.0,0.000384,120]
[421986112,1778405520000,-152.0,0.00039275,3]
[421986110,1778405520000,-667.44,0.000391,14]
[421986107,1778405520000,-484.79921627,0.00038999,120]
[421986108,1778405520000,-278.96614379,0.00039005,2]
[421986109,1778405520000,-484.79921623,0.00039096,120]
[421986111,1778405520000,-484.79921623,0.00039194,120]
[421986114,1778405520000,-484.79921623,0.00039291,120]
[421986119,1778405520000,-150.0,0.0004,120]
[421986115,1778405520000,-484.79921623,0.00039389,120]
[421986117,1778405520000,-188.11582551,0.000395,30]
[421986116,1778405520000,-46543.26993439,0.000395,120]
[421986118,1778405520000,-3297.03898159,0.000399,120]
[421986127,1778405520000,-442.74,0.0004029,60]
[421986122,1778405520000,-348.6225715,0.00040072,12]
[421986148,1778405520000,-1834.0,0.00040822,60]
[421986151,1778405520000,-1834.0,0.00040822,60]
[421986152,1778405520000,-500.0,0.00040822,60]
[421986182,1778405520000,-5573.33,0.00040939,2]
[421986184,1778405520000,-245.52508766,0.00041,30]
[421986183,1778405520000,-289.6,0.00041,30]
[421986186,1778405520000,-150.0,0.00041027,6]
[421986185,1778405520000,-224.410256,0.00041026,54]
[421986187,1778405520000,-1143.5,0.00041041,120]
[421986188,1778405520000,-666.0,0.00041051,30]
[421986190,1778405520000,-500.0,0.00041051,7]
[421986189,1778405520000,-500.0,0.00041051,7]
[421986194,1778405520000,-159.0,0.00041051,120]
[421986150,1778405520000,-150.0,0.00040822,60]
[421986191,1778405520000,-500.0,0.00041051,7]
[421986193,1778405520000,-580.01572099,0.00041051,7]
[421986195,1778405520000,-151.0,0.00041051,120]
[421986197,1778405520000,-154.0,0.00041051,120]
[421986196,1778405520000,-155.0,0.00041051,120]
[421986198,1778405520000,-302.0,0.00041051,120]
[421986199,1778405520000,-161.0,0.00041051,120]
[421986200,1778405520000,-156.0,0.00041051,120]
[421986201,1778405520000,-155.0,0.00041051,120]
[421986202,1778405520000,-158.0,0.00041051,120]
[421986204,1778405520000,-227.0,0.00041051,120]
[421986206,1778405520000,-2573.62511304,0.00041072,60]
[421986203,1778405520000,-160.0,0.00041051,120]
[421986205,1778405520000,-494.91240732,0.00041052,120]
[421986179,1778405520000,-1847.04303863,0.00040822,60]
[421986181,1778405520000,-670.06,0.00040841,2]
[421986192,1778405520000,-500.0,0.00041051,7]
[421986178,1778405520000,-1834.0,0.00040822,60]
[421986180,1778405520000,-3715.55,0.00040837,2]
[421986153,1778405520000,-150.0,0.00040822,60]
[421986157,1778405520000,-1834.0,0.00040822,60]
[421986154,1778405520000,-1834.0,0.00040822,60]
[421986155,1778405520000,-500.0,0.00040822,60]
[421986156,1778405520000,-150.0,0.00040822,60]
[421986160,1778405520000,-150.0,0.00040822,60]
[421986159,1778405520000,-1834.0,0.00040822,60]
[421986158,1778405520000,-500.0,0.00040822,60]
[421986161,1778405520000,-589.06194572,0.00040822,60]
[421986163,1778405520000,-185.98899695,0.00040822,60]
[421986165,1778405520000,-1834.0,0.00040822,60]
[421986162,1778405520000,-1834.0,0.00040822,60]
[421986169,1778405520000,-1834.0,0.00040822,60]
[421986168,1778405520000,-151.37577271,0.00040822,60]
[421986164,1778405520000,-1834.0,0.00040822,60]
[421986173,1778405520000,-1834.0,0.00040822,60]
[421986175,1778405520000,-1834.0,0.00040822,60]
[421986177,1778405520000,-1834.0,0.00040822,60]
[421986174,1778405520000,-1834.0,0.00040822,60]
[421986176,1778405520000,-1834.0,0.00040822,60]
[421986171,1778405520000,-1834.0,0.00040822,60]
[421986170,1778405520000,-1834.0,0.00040822,60]
[421986166,1778405520000,-150.0,0.00040822,60]
[421986167,1778405520000,-1834.0,0.00040822,60]
[421986172,1778405520000,-1834.0,0.00040822,60]
[421986217,1778405521000,-401.84786943,0.00041072,2]
[421986216,1778405521000,-32162.23080007,0.00041072,2]
[421986214,1778405521000,-1149.1828051,0.00041072,2]
[421986215,1778405521000,-375392.38131349,0.00041072,2]
[421986207,1778405521000,-151.0,0.00041072,60]
[421986213,1778405521000,-10111.30136944,0.00041072,2]
[421986212,1778405521000,-417.06595417,0.00041072,120]
[421986211,1778405521000,-187432.91292602,0.00041072,2]
[421986218,1778405521000,-152.05,0.00024658,2]
[421986208,1778405521000,-151.0,0.00041072,60]
[421986209,1778405521000,-193.75,0.00041072,120]
[421986219,1778405521000,-152.05,0.00025342,7]
[421986226,1778405521000,-820.94,0.00041072,2]
[421986223,1778405521000,-168.95,0.00026575,30]
[421986222,1778405521000,-168.95,0.00026301,7]
[421986221,1778405521000,-168.95,0.00026028,2]
[421986224,1778405521000,-152.05,0.00026712,2]
[421986225,1778405521000,-881.275,0.00041072,2]
[421986227,1778405521000,-2461.125,0.00041072,2]
[421986229,1778405521000,-951.60355691,0.00041072,2]
[421986230,1778405521000,-2149.30469171,0.00041072,2]
[421986228,1778405521000,-152.09,0.00027397,7]
[421986231,1778405521000,-5289.59268798,0.00041072,2]
[421986210,1778405521000,-3194.44852467,0.00041072,2]
[421986220,1778405521000,-152.05,0.00026027,30]
[421986232,1778405521000,-13556.30089108,0.00041072,2]
[421986233,1778405522000,633.69,9.514e-05,2]
[421986236,1778405728000,900.12156065,0.00027397,120]
[421986238,1778405994000,167.0,0.00012,3]
[421986239,1778406155000,211.38,7.735e-05,2]
[421986240,1778406172000,-250.0,9.962e-05,2]
[421986241,1778406187000,-150.0,0.00010099,2]
[421986242,1778406202000,-291.33,0.00010265,2]